fUSD/lending_fUSD_20240902
["ID","MTS","AMOUNT","RATE_DAILY","PERIOD"]
[337005239,1725300661448,-818.74,0.00019178,2]
[337005240,1725300661460,-818.74,0.00019178,2]
[337005241,1725300661470,-500.0,0.00019178,2]
[337005242,1725300661480,-818.74,0.00019178,2]
[337005243,1725300661490,-500.0,0.00019178,2]
[337005244,1725300661500,-818.74,0.00019178,2]
[337005245,1725300661510,-500.0,0.00019178,2]
[337005246,1725300661520,-500.0,0.00019178,2]
[337005247,1725300661530,-500.0,0.00019178,2]
[337005248,1725300661540,-500.0,0.00019178,2]
[337005249,1725300661550,-500.0,0.00019178,2]
[337005250,1725300661560,-540.75471784,0.00019178,2]
[337005251,1725300661570,-500.0,0.00019178,2]
[337005252,1725300661579,-500.0,0.00019178,2]
[337005253,1725300661589,-500.0,0.00019178,2]
[337005254,1725300661599,-500.0,0.00019178,2]
[337005255,1725300661610,-500.0,0.00019178,2]
[337005256,1725300661619,-500.0,0.00019178,2]
[337005257,1725300661629,-500.0,0.00019178,2]
[337005258,1725300661639,-500.0,0.00019178,2]
[337005259,1725300661648,-500.0,0.00019178,2]
[337005260,1725300661658,-500.0,0.00019178,2]
[337005261,1725300661667,-500.0,0.00019178,2]
[337005262,1725300661676,-500.0,0.00019178,2]
[337005263,1725300661686,-500.0,0.00019178,2]
[337005264,1725300661695,-450.53,0.00019178,2]
[337005265,1725300661705,-500.0,0.00019178,2]
[337005266,1725300661716,-500.0,0.00019178,2]
[337005267,1725300661726,-259.66083675,0.00019178,2]
[337005268,1725300661735,-206.289078,0.00019178,2]
[337005269,1725300661745,-206.289078,0.00019178,2]
[337005270,1725300661754,-206.289078,0.00019178,2]
[337005271,1725300661764,-206.289078,0.00019178,2]
[337005272,1725300661773,-500.0,0.00019178,2]
[337005273,1725300661783,-500.0,0.00019178,2]
[337005274,1725300661793,-500.0,0.00019178,2]
[337005275,1725300661802,-206.289078,0.00019178,2]
[337005276,1725300661812,-500.0,0.00019178,2]
[337005277,1725300661821,-500.0,0.00019178,2]
[337005278,1725300661839,-206.289078,0.00019178,2]
[337005279,1725300661861,-500.0,0.00019178,2]
[337005280,1725300661871,-500.0,0.00019178,2]
[337005281,1725300661881,-500.0,0.00019178,2]
[337005282,1725300661890,-500.0,0.00019178,2]
[337005283,1725300661899,-500.0,0.00019178,2]
[337005284,1725300661909,-500.0,0.00019178,2]
[337005285,1725300661919,-500.0,0.00019178,2]
[337005286,1725300661928,-500.0,0.00019178,2]
[337005287,1725300661938,-500.0,0.00019178,2]
[337005288,1725300661947,-500.0,0.00019178,2]
[337005289,1725300661957,-500.0,0.00019178,2]
[337005290,1725300661969,-500.0,0.00019178,2]
[337005291,1725300661978,-206.289078,0.00019178,2]
[337005292,1725300661988,-500.0,0.00019178,2]
[337005293,1725300661998,-500.0,0.00019178,2]
[337005294,1725300662008,-500.0,0.00019178,2]
[337005295,1725300662018,-500.0,0.00019178,2]
[337005296,1725300662028,-206.289078,0.00019178,2]
[337005297,1725300662038,-500.0,0.00019178,2]
[337005298,1725300662048,-206.289078,0.00019178,2]
[337005299,1725300662061,-500.0,0.00019178,2]
[337005300,1725300662071,-500.0,0.00019178,2]
[337005301,1725300662081,-206.289078,0.00019178,2]
[337005302,1725300662091,-500.0,0.00019178,2]
[337005303,1725300662103,-500.0,0.00019178,2]
[337005304,1725300662114,-500.0,0.00019178,2]
[337005305,1725300662124,-500.0,0.00019178,2]
[337005306,1725300662135,-206.289078,0.00019178,2]
[337005307,1725300662146,-500.0,0.00019178,2]
[337005308,1725300662156,-500.0,0.00019178,2]
[337005309,1725300662167,-206.289078,0.00019178,2]
[337005310,1725300662178,-453.07892169,0.00019178,2]
[337005311,1725300662188,-500.0,0.00019178,2]
[337005312,1725300662198,-500.0,0.00019178,2]
[337005313,1725300662210,-500.0,0.00019178,2]
[337005314,1725300662220,-500.0,0.00019178,2]
[337005315,1725300662230,-500.0,0.00019178,2]
[337005316,1725300662240,-252.97301323,0.00019178,2]
[337005317,1725300662250,-540.56583018,0.00019178,2]
[337005318,1725300662260,-500.0,0.00019178,2]
[337005319,1725300662270,-500.0,0.00019178,2]
[337005320,1725300662280,-500.0,0.00019178,2]
[337005321,1725300662290,-255.1501623,0.00019178,2]
[337005322,1725300662301,-500.0,0.00019178,2]
[337005323,1725300662310,-500.0,0.00019178,2]
[337005324,1725300662320,-500.0,0.00019178,2]
[337005325,1725300662329,-500.0,0.00019178,2]
[337005326,1725300662339,-500.0,0.00019178,2]
[337005327,1725300662350,-500.0,0.00019178,2]
[337005328,1725300662360,-500.0,0.00019178,2]
[337005329,1725300662370,-500.0,0.00019178,2]
[337005330,1725300662381,-500.0,0.00019178,2]
[337005331,1725300662390,-500.0,0.00019178,2]
[337005332,1725300662402,-482.96783413,0.00019178,2]
[337005333,1725300662413,-500.0,0.00019178,2]
[337005334,1725300662423,-500.0,0.00019178,2]
[337005335,1725300662433,-500.0,0.00019178,2]
[337005336,1725300662444,-500.0,0.00019178,2]
[337005337,1725300662454,-500.0,0.00019178,2]
[337005338,1725300662469,-500.0,0.00019178,2]
[337005339,1725300662480,-500.0,0.00019178,2]
[337005340,1725300662490,-502.70219305,0.00019178,2]
[337005341,1725300662500,-500.0,0.00019178,2]
[337005342,1725300662510,-500.0,0.00019178,2]
[337005343,1725300662520,-500.0,0.00019178,2]
[337005344,1725300662531,-500.0,0.00019178,2]
[337005345,1725300662541,-500.0,0.00019178,2]
[337005346,1725300662552,-500.0,0.00019178,2]
[337005347,1725300662562,-500.0,0.00019178,2]
[337005348,1725300662572,-500.0,0.00019178,2]
[337005349,1725300662582,-500.0,0.00019178,2]
[337005350,1725300662592,-500.0,0.00019178,2]
[337005351,1725300662603,-500.0,0.00019178,2]
[337005352,1725300662613,-500.0,0.00019178,2]
[337005353,1725300662622,-500.0,0.00019178,2]
[337005354,1725300662632,-500.0,0.00019178,2]
[337005355,1725300662641,-500.0,0.00019178,2]
[337005356,1725300662651,-500.0,0.00019178,2]
[337005357,1725300662660,-500.0,0.00019178,2]
[337005358,1725300662669,-500.0,0.00019178,2]
[337005359,1725300662679,-500.0,0.00019178,2]
[337005360,1725300662688,-500.0,0.00019178,2]
[337005361,1725300662698,-500.0,0.00019178,2]
[337005362,1725300662707,-500.0,0.00019178,2]
[337005363,1725300662717,-500.0,0.00019178,2]
[337005364,1725300662727,-500.0,0.00019178,2]
[337005365,1725300662737,-500.0,0.00019178,2]
[337005366,1725300662747,-500.0,0.00019178,2]
[337005367,1725300662757,-500.0,0.00019178,2]
[337005368,1725300662766,-500.0,0.00019178,2]
[337005369,1725300662776,-500.0,0.00019178,2]
[337005370,1725300662787,-500.0,0.00019178,2]
[337005371,1725300662796,-500.0,0.00019178,2]
[337005372,1725300662806,-500.0,0.00019178,2]
[337005373,1725300662816,-500.0,0.00019178,2]
[337005374,1725300662827,-500.0,0.00019178,2]
[337005375,1725300662839,-500.0,0.00019178,2]
[337005376,1725300662848,-500.0,0.00019178,2]
[337005377,1725300662858,-500.0,0.00019178,2]
[337005378,1725300662868,-500.0,0.00019178,2]
[337005379,1725300662878,-500.0,0.00019178,2]
[337005380,1725300662888,-500.0,0.00019178,2]
[337005381,1725300662898,-500.0,0.00019178,2]
[337005382,1725300662908,-500.0,0.00019178,2]
[337005383,1725300662918,-500.0,0.00019178,2]
[337005384,1725300662928,-500.0,0.00019178,2]
[337005385,1725300662938,-500.0,0.00019178,2]
[337005386,1725300662948,-372.63415875,0.00019178,2]
[337005387,1725300662957,-500.0,0.00019178,2]
[337005388,1725300662979,-500.0,0.00019178,2]
[337005389,1725300662988,-500.0,0.00019178,2]
[337005390,1725300662998,-500.0,0.00019178,2]
[337005391,1725300663008,-500.0,0.00019178,2]
[337005392,1725300663017,-500.0,0.00019178,2]
[337005393,1725300663027,-500.0,0.00019178,2]
[337005394,1725300663037,-500.0,0.00019178,2]
[337005395,1725300663047,-500.0,0.00019178,2]
[337005396,1725300663058,-500.0,0.00019178,2]
[337005397,1725300663071,-500.0,0.00019178,2]
[337005398,1725300663081,-500.0,0.00019178,2]
[337005399,1725300663092,-515.66214868,0.00019178,2]
[337005400,1725300663102,-500.0,0.00019178,2]
[337005401,1725300663113,-500.0,0.00019178,2]
[337005402,1725300663123,-500.0,0.00019178,2]
[337005403,1725300663133,-500.0,0.00019178,2]
[337005404,1725300663145,-500.0,0.00019178,2]
[337005405,1725300663155,-500.0,0.00019178,2]
[337005406,1725300663166,-500.0,0.00019178,2]
[337005407,1725300663180,-500.0,0.00019178,2]
[337005408,1725300663189,-500.0,0.00019178,2]
[337005409,1725300663199,-500.0,0.00019178,2]
[337005410,1725300663215,-500.0,0.00019178,2]
[337005411,1725300663226,-500.0,0.00019178,2]
[337005412,1725300663237,-500.0,0.00019178,2]
[337005413,1725300663247,-500.0,0.00019178,2]
[337005414,1725300663257,-500.0,0.00019178,2]
[337005415,1725300663268,-500.0,0.00019178,2]
[337005416,1725300663279,-500.0,0.00019178,2]
[337005417,1725300663289,-500.0,0.00019178,2]
[337005418,1725300663300,-500.0,0.00019178,2]
[337005419,1725300663310,-500.0,0.00019178,2]
[337005420,1725300663320,-500.0,0.00019178,2]
[337005421,1725300663330,-500.0,0.00019178,2]
[337005422,1725300663341,-500.0,0.00019178,2]
[337005423,1725300663351,-264.53646475,0.00019178,2]
[337005424,1725300663361,-500.0,0.00019178,2]
[337005425,1725300663372,-500.0,0.00019178,2]
[337005426,1725300663382,-500.0,0.00019178,2]
[337005427,1725300663391,-500.0,0.00019178,2]
[337005428,1725300663402,-500.0,0.00019178,2]
[337005429,1725300663412,-500.0,0.00019178,2]
[337005430,1725300663422,-500.0,0.00019178,2]
[337005431,1725300663432,-500.0,0.00019178,2]
[337005432,1725300663441,-500.0,0.00019178,2]
[337005433,1725300663451,-500.0,0.00019178,2]
[337005434,1725300663463,-500.0,0.00019178,2]
[337005435,1725300663472,-500.0,0.00019178,2]
[337005436,1725300663482,-605.16495127,0.00019178,2]
[337005437,1725300663492,-500.0,0.00019178,2]
[337005438,1725300663502,-500.0,0.00019178,2]
[337005439,1725300663512,-251.948562,0.00019178,2]
[337005440,1725300663522,-500.0,0.00019178,2]
[337005441,1725300663535,-500.0,0.00019178,2]
[337005442,1725300663545,-155.48049541,0.00019178,2]
[337005443,1725300663555,-616.84,0.00019178,2]
[337005444,1725300663565,-500.0,0.00019178,2]
[337005445,1725300663575,-616.84,0.00019178,2]
[337005446,1725300663585,-500.0,0.00019178,2]
[337005447,1725300663595,-616.84,0.00019178,2]
[337005448,1725300663604,-616.84,0.00019178,2]
[337005449,1725300663613,-500.0,0.00019178,2]
[337005450,1725300663623,-500.0,0.00019178,2]
[337005451,1725300663632,-616.84,0.00019178,2]
[337005452,1725300663642,-500.0,0.00019178,2]
[337005453,1725300663651,-616.84,0.00019178,2]
[337005454,1725300663661,-500.0,0.00019178,2]
[337005455,1725300663671,-616.84,0.00019178,2]
[337005456,1725300663681,-500.0,0.00019178,2]
[337005457,1725300663690,-616.84,0.00019178,2]
[337005458,1725300663700,-500.0,0.00019178,2]
[337005459,1725300663710,-616.84,0.00019178,2]
[337005460,1725300663732,-500.0,0.00019178,2]
[337005461,1725300663742,-616.84,0.00019178,2]
[337005462,1725300663752,-500.0,0.00019178,2]
[337005463,1725300663762,-616.84,0.00019178,2]
[337005464,1725300663772,-500.0,0.00019178,2]
[337005465,1725300663783,-616.84,0.00019178,2]
[337005466,1725300663793,-616.84,0.00019178,2]
[337005467,1725300663803,-500.0,0.00019178,2]
[337005468,1725300663813,-616.84,0.00019178,2]
[337005469,1725300663824,-500.0,0.00019178,2]
[337005470,1725300663833,-616.84,0.00019178,2]
[337005471,1725300663843,-616.84,0.00019178,2]
[337005472,1725300663853,-618.51738024,0.00019178,2]
[337005473,1725300663863,-500.0,0.00019178,2]
[337005474,1725300663873,-500.0,0.00019178,2]
[337005475,1725300663883,-585.90397116,0.00019178,2]
[337005476,1725300663892,-1711.28,0.000192,2]
[337005477,1725300663903,-209.0,0.0001927,2]
[337005478,1725300663912,-201.0,0.0001927,2]
[337005479,1725300663923,-152.0,0.00019285,3]
[337005480,1725300663933,-2864.09272181,0.00019407,2]
[337005481,1725300663944,-212.003848,0.0001941,2]
[337005482,1725300663954,-39273.940728,0.0001941,2]
[337005483,1725300663967,-209.0,0.0001951,2]
[337005484,1725300663976,-201.0,0.0001951,2]
[337005485,1725300663986,-823.0,0.00019538,2]
[337005486,1725300663995,-1400.0,0.000196,7]
[337005487,1725300664005,-616.84,0.00019652,2]
[337005488,1725300664015,-39273.940728,0.00019653,2]
[337005489,1725300664025,-200.0,0.000197,7]
[337005490,1725300664034,-600.0,0.00019735,2]
[337005491,1725300664044,-500.0,0.00019735,2]
[337005492,1725300664054,-209.0,0.0001976,2]
[337005493,1725300664224,-201.0,0.0001976,2]
[337005494,1725300664234,-616.84,0.00019794,2]
[337005495,1725300664245,-3685.31712021,0.00019795,2]
[337005496,1725300664255,-206.289078,0.00019795,2]
[337005497,1725300664265,-206.289078,0.00019795,2]
[337005498,1725300664275,-933.6,0.00019798,2]
[337005499,1725300664284,-500.0,0.00019798,2]
[337005500,1725300664294,-665.31,0.00019798,2]
[337005501,1725300664303,-500.0,0.00019798,2]
[337005502,1725300664313,-865.31,0.00019798,2]
[337005503,1725300664323,-707.73,0.00019798,2]
[337005504,1725300664333,-500.0,0.00019798,2]
[337005505,1725300664343,-1606.49,0.00019798,2]
[337005506,1725300664353,-2338.42,0.00019798,2]
[337005507,1725300664363,-597.57,0.00019798,2]
[337005508,1725300664373,-971.03,0.00019798,2]
[337005509,1725300664384,-772.7,0.00019798,2]
[337005510,1725300664394,-500.0,0.00019798,2]
[337005511,1725300664403,-1191.24,0.00019798,2]
[337005512,1725300664413,-500.0,0.00019798,2]
[337005513,1725300664422,-992.74,0.00019798,2]
[337005514,1725300664433,-702.02,0.00019798,2]
[337005515,1725300664443,-572.2,0.00019798,2]
[337005516,1725300664453,-1147.9,0.00019798,2]
[337005517,1725300664463,-798.45,0.00019798,2]
[337005518,1725300664474,-500.0,0.00019798,2]
[337005519,1725300664484,-500.0,0.00019798,2]
[337005520,1725300664494,-528.98,0.00019798,2]
[337005521,1725300664504,-500.0,0.00019798,2]
[337005522,1725300664514,-1035.4,0.00019798,2]
[337005523,1725300664524,-716.34,0.00019798,2]
[337005524,1725300664535,-500.0,0.00019798,2]
[337005525,1725300664544,-500.0,0.00019798,2]
[337005526,1725300664554,-647.62,0.00019798,2]
[337005527,1725300664564,-1725.75,0.00019798,2]
[337005528,1725300664574,-1142.0,0.00019798,2]
[337005529,1725300664584,-1262.15,0.00019798,2]
[337005530,1725300664593,-722.55,0.00019798,2]
[337005531,1725300664603,-500.0,0.00019798,2]
[337005532,1725300664613,-2113.33,0.00019798,2]
[337005533,1725300664622,-500.0,0.00019798,2]
[337005534,1725300664632,-603.61,0.00019798,2]
[337005535,1725300664642,-881.98,0.00019798,2]
[337005536,1725300664652,-656.17,0.00019798,2]
[337005537,1725300664662,-612.92,0.00019798,2]
[337005538,1725300664672,-3109.13,0.00019798,2]
[337005539,1725300664682,-5912.49,0.00019798,2]
[337005540,1725300664693,-986.87,0.00019798,2]
[337005541,1725300664703,-1113.37,0.00019798,2]
[337005542,1725300664713,-5068.27,0.00019798,2]
[337005543,1725300664722,-878.39,0.00019798,2]
[337005544,1725300664732,-500.0,0.00019798,2]
[337005545,1725300664741,-500.0,0.00019798,2]
[337005546,1725300664750,-500.0,0.00019798,2]
[337005547,1725300664760,-500.0,0.00019798,2]
[337005548,1725300664769,-500.0,0.00019798,2]
[337005549,1725300664779,-1682.3,0.00019798,2]
[337005550,1725300664789,-1242.99,0.00019798,2]
[337005551,1725300664799,-1590.08,0.00019798,2]
[337005552,1725300664808,-595.99,0.00019798,2]
[337005553,1725300664818,-3159.2,0.00019798,2]
[337005554,1725300664828,-500.0,0.00019798,2]
[337005555,1725300664837,-500.0,0.00019798,2]
[337005556,1725300664847,-1240.0,0.00019798,2]
[337005557,1725300664856,-500.0,0.00019798,2]
[337005558,1725300664866,-1984.63,0.00019798,2]
[337005559,1725300664875,-500.0,0.00019798,2]
[337005560,1725300664885,-910.09,0.00019798,2]
[337005561,1725300664896,-500.0,0.00019798,2]
[337005562,1725300664906,-500.0,0.00019798,2]
[337005563,1725300664916,-818.74,0.00019798,2]
[337005564,1725300664926,-500.0,0.00019798,2]
[337005565,1725300664936,-500.0,0.00019798,2]
[337005566,1725300664945,-500.0,0.00019798,2]
[337005567,1725300664955,-500.0,0.00019798,2]
[337005568,1725300664965,-500.0,0.00019798,2]
[337005569,1725300664975,-500.0,0.00019798,2]
[337005570,1725300664985,-200.0,0.000198,7]
[337005571,1725300664994,-511.08109,0.0001985,2]
[337005572,1725300665004,-500.0,0.00019895,2]
[337005573,1725300665014,-500.0,0.00019895,2]
[337005574,1725300665023,-500.0,0.00019895,2]
[337005575,1725300665033,-39273.940728,0.00019896,2]
[337005576,1725300665042,-200.0,0.000199,7]
[337005577,1725300665052,-483.57205229,0.000199,2]
[337005578,1725300665063,-2864.09272181,0.000199,2]
[337005579,1725300665075,-1071.39214293,0.0001995,2]
[337005580,1725300665085,-933.6,0.00019989,2]
[337005581,1725300665095,-500.0,0.00019989,2]
[337005582,1725300665104,-665.31,0.00019989,2]
[337005583,1725300665114,-500.0,0.00019989,2]
[337005584,1725300665124,-865.31,0.00019989,2]
[337005585,1725300665134,-707.73,0.00019989,2]
[337005586,1725300665144,-500.0,0.00019989,2]
[337005587,1725300665153,-1606.49,0.00019989,2]
[337005588,1725300665162,-2338.42,0.00019989,2]
[337005589,1725300665172,-597.57,0.00019989,2]
[337005590,1725300665181,-971.03,0.00019989,2]
[337005591,1725300665191,-772.7,0.00019989,2]
[337005592,1725300665201,-500.0,0.00019989,2]
[337005593,1725300665210,-1191.24,0.00019989,2]
[337005594,1725300665220,-244.3579676,0.00019989,2]
[337005595,1725300665229,-992.74,0.00019989,2]
[337005596,1725300665240,-702.02,0.00019989,2]
[337005597,1725300665250,-572.2,0.00019989,2]
[337005598,1725300665259,-1147.9,0.00019989,2]
[337005599,1725300665270,-798.45,0.00019989,2]
[337005600,1725300665279,-578.55705164,0.00019989,2]
[337005601,1725300665289,-500.0,0.00019989,2]
[337005602,1725300665300,-528.98,0.00019989,2]
[337005603,1725300665310,-500.0,0.00019989,2]
[337005604,1725300665319,-1035.4,0.00019989,2]
[337005605,1725300665329,-716.34,0.00019989,2]
[337005606,1725300665338,-500.0,0.00019989,2]
[337005607,1725300665348,-500.0,0.00019989,2]
[337005608,1725300665357,-647.62,0.00019989,2]
[337005609,1725300665367,-1725.75,0.00019989,2]
[337005610,1725300665378,-1142.0,0.00019989,2]
[337005611,1725300665391,-1262.15,0.00019989,2]
[337005612,1725300665400,-722.55,0.00019989,2]
[337005613,1725300665410,-500.0,0.00019989,2]
[337005614,1725300665420,-2113.33,0.00019989,2]
[337005615,1725300665430,-500.0,0.00019989,2]
[337005616,1725300665440,-603.61,0.00019989,2]
[337005617,1725300665449,-881.98,0.00019989,2]
[337005618,1725300665460,-656.17,0.00019989,2]
[337005619,1725300665472,-612.92,0.00019989,2]
[337005620,1725300665482,-3109.13,0.00019989,2]
[337005621,1725300665492,-5912.49,0.00019989,2]
[337005622,1725300665502,-986.87,0.00019989,2]
[337005623,1725300665512,-1113.37,0.00019989,2]
[337005624,1725300665522,-5068.27,0.00019989,2]
[337005625,1725300665532,-878.39,0.00019989,2]
[337005626,1725300665541,-500.0,0.00019989,2]
[337005627,1725300665551,-500.0,0.00019989,2]
[337005628,1725300665561,-500.0,0.00019989,2]
[337005629,1725300665571,-500.0,0.00019989,2]
[337005630,1725300665580,-500.0,0.00019989,2]
[337005631,1725300665590,-1682.3,0.00019989,2]
[337005632,1725300665600,-1242.99,0.00019989,2]
[337005633,1725300665610,-1590.08,0.00019989,2]
[337005634,1725300665620,-595.99,0.00019989,2]
[337005635,1725300665630,-3159.2,0.00019989,2]
[337005636,1725300665640,-500.0,0.00019989,2]
[337005637,1725300665650,-500.0,0.00019989,2]
[337005638,1725300665659,-1240.0,0.00019989,2]
[337005639,1725300665670,-500.0,0.00019989,2]
[337005640,1725300665680,-1984.63,0.00019989,2]
[337005641,1725300665689,-500.0,0.00019989,2]
[337005642,1725300665699,-910.09,0.00019989,2]
[337005643,1725300665709,-500.0,0.00019989,2]
[337005644,1725300665720,-500.0,0.00019989,2]
[337005645,1725300665730,-818.74,0.00019989,2]
[337005646,1725300665740,-500.0,0.00019989,2]
[337005647,1725300665749,-500.0,0.00019989,2]
[337005648,1725300665759,-635.49140147,0.00019989,2]
[337005649,1725300665769,-500.0,0.00019989,2]
[337005650,1725300665780,-382.72659016,0.00019989,2]
[337005651,1725300665789,-501.08055522,0.00019989,2]
[337005652,1725300665799,-161.220318,0.0001999,4]
[337005653,1725300665809,-1911.8253152,0.0001999,2]
[337005654,1725300665818,-156.3708019,0.0001999,2]
[337005655,1725300665828,-179.1820955,0.0001999,2]
[337005656,1725300665838,-8681.7827971,0.0001999,2]
[337005657,1725300665847,-450.2042137,0.0001999,2]
[337005658,1725300665856,-281.9068208,0.0001999,2]
[337005659,1725300665866,-616.84,0.00019994,2]
[337005660,1725300665876,-1235.08,0.00019995,2]
[337005661,1725300665886,-882.27,0.00019995,2]
[337005662,1725300665895,-500.0,0.00019995,2]
[337005663,1725300665905,-500.0,0.00019995,2]
[337005664,1725300665915,-1420.74,0.00019995,2]
[337005665,1725300665924,-981.35,0.00019995,2]
[337005666,1725300665934,-500.0,0.00019995,2]
[337005667,1725300665944,-1713.36,0.00019995,2]
[337005668,1725300665953,-1656.68,0.00019995,2]
[337005669,1725300665963,-500.0,0.00019995,2]
[337005670,1725300665982,-2013.1,0.00019995,2]
[337005671,1725300665992,-500.0,0.00019995,2]
[337005672,1725300666002,-500.0,0.00019995,2]
[337005673,1725300666012,-500.0,0.00019995,2]
[337005674,1725300666022,-625.58,0.00019995,2]
[337005675,1725300666032,-507.65,0.00019995,2]
[337005676,1725300666042,-151.89,0.00019995,2]
[337005677,1725300666052,-500.0,0.00019995,2]
[337005678,1725300666066,-2358.94,0.00019995,2]
[337005679,1725300666076,-1322.46,0.00019995,2]
[337005680,1725300666086,-500.0,0.00019995,2]
[337005681,1725300666096,-2704.97,0.00019995,2]
[337005682,1725300666106,-2059.76,0.00019995,2]
[337005683,1725300666116,-948.51,0.00019995,2]
[337005684,1725300666126,-500.0,0.00019995,2]
[337005685,1725300666138,-500.0,0.00019995,2]
[337005686,1725300666148,-627.7,0.00019995,2]
[337005687,1725300666158,-801.4,0.00019995,2]
[337005688,1725300666167,-9556.8328446,0.00019996,2]
[337005689,1725300666177,-8027.8313387,0.00019996,2]
[337005690,1725300666187,-6498.8298328,0.00019996,2]
[337005691,1725300666196,-4969.828327,0.00019996,2]
[337005692,1725300666206,-3440.8268211,0.00019996,2]
[337005693,1725300666218,-156.3708019,0.00019996,2]
[337005694,1725300666228,-156.3708019,0.00019996,2]
[337005695,1725300666238,-156.3708019,0.00019996,2]
[337005696,1725300666248,-156.3708019,0.00019996,2]
[337005697,1725300666258,-156.3708019,0.00019996,2]
[337005698,1725300666268,-886.7435173,0.00019996,2]
[337005699,1725300666278,-745.231233,0.00019996,2]
[337005700,1725300666288,-603.7189486,0.00019996,2]
[337005701,1725300666298,-462.2066642,0.00019996,2]
[337005702,1725300666308,-320.6943799,0.00019996,2]
[337005703,1725300666317,-42964.7537714,0.00019996,2]
[337005704,1725300666327,-36108.1595766,0.00019996,2]
[337005705,1725300666337,-29251.5653817,0.00019996,2]
[337005706,1725300666348,-22394.9711869,0.00019996,2]
[337005707,1725300666358,-15538.376992,0.00019996,2]
[337005708,1725300666368,-2205.8678438,0.00019996,2]
[337005709,1725300666379,-1854.7351177,0.00019996,2]
[337005710,1725300666389,-1503.6023917,0.00019996,2]
[337005711,1725300666400,-1152.4696657,0.00019996,2]
[337005712,1725300666410,-801.3369397,0.00019996,2]
[337005713,1725300666420,-1381.2602638,0.00019996,2]
[337005714,1725300666431,-1161.3895752,0.00019996,2]
[337005715,1725300666441,-941.5188866,0.00019996,2]
[337005716,1725300666452,-721.648198,0.00019996,2]
[337005717,1725300666464,-501.7775094,0.00019996,2]
[337005718,1725300666474,-206.289078,0.00019996,2]
[337005719,1725300666483,-206.289078,0.00019996,2]
[337005720,1725300666493,-616.84,0.00019997,2]
[337005721,1725300666502,-616.84,0.00019997,2]
[337005722,1725300666512,-616.84,0.00019997,2]
[337005723,1725300666522,-616.84,0.00019997,2]
[337005724,1725300666532,-616.99286053,0.00019997,2]
[337005725,1725300666544,-933.6,0.00019998,2]
[337005726,1725300666554,-933.6,0.00019998,2]
[337005727,1725300666563,-500.0,0.00019998,2]
[337005728,1725300666574,-500.0,0.00019998,2]
[337005729,1725300666584,-665.31,0.00019998,2]
[337005730,1725300666594,-665.31,0.00019998,2]
[337005731,1725300666603,-500.0,0.00019998,2]
[337005732,1725300666614,-500.0,0.00019998,2]
[337005733,1725300666624,-865.31,0.00019998,2]
[337005734,1725300666634,-865.31,0.00019998,2]
[337005735,1725300666643,-707.73,0.00019998,2]
[337005736,1725300666654,-707.73,0.00019998,2]
[337005737,1725300666664,-500.0,0.00019998,2]
[337005738,1725300666673,-500.0,0.00019998,2]